Cogmind - Beta 15 @@@ ROGUE MODE // 2025.09.14 @ 08:34:45 Player: beans Result: Destroyed by Y-45 Defender with Beam Rifle Performance ------------- Evolutions (2) 1000 Regions Visited (5) 1000 Robots Destroyed (69) 345 Value Destroyed (1567) 1567 Prototype IDs (6) 120 Alien Tech Used (0) 0 Bonus (200) 200 TOTAL SCORE: 4232 Bonus ------- Entered Garrisons 200 Cogmind --------- Core Integrity 0/550 Matter 171/300 Energy 45/100 System Corruption 0% Temperature Cool (17) Movement Hovering (76) Location -8/Materials Parts ------- > --- POWER (1) -------- Backup Power I > --- PROPULSION (2) --- Backup Propulsion I Backup Propulsion I > --- UTILITY (5) ------ Improved Heat Sink Improved Heat Sink Machine Analyzer Hacking Suite System Shield > --- WEAPON (3) ------- Field Laser Minigun > --- INVENTORY (5) ---- Heavy Particle Cannon Light Assault Rifle Datajack Peak State ------------ > --- POWER ------------ Backup Power I > --- PROPULSION ------- Backup Propulsion I Backup Propulsion I > --- UTILITY ---------- Improved Heat Sink Improved Heat Sink Machine Analyzer Hacking Suite System Shield > --- WEAPON ----------- Field Laser Heavy Particle Cannon Minigun > --- INVENTORY -------- Light Assault Rifle Datajack [Rating: 27] Favorites ----------- Power Improved Ion Engine Engine Improved Ion Engine Propulsion Light Treads Treads Light Treads Leg Titanium Leg Hover Unit Backup Propulsion I Utility Heat Sink Device Heat Sink Processor Machine Analyzer Hackware Hacking Suite Weapon Medium Laser Energy Gun Medium Laser Energy Cannon Heavy Particle Cannon Ballistic Gun Light Assault Rifle Launcher Improved Grenade Launcher Special Melee Weapon Datajack Build | -11 -10 -9 -8 -8 -8 ------- Run | Yrd Mat Mat Mat Gar Mat Slots Evolved 4 | . . 2 2 . . Power . | . . . . . . Propulsion . | . . . . . . Utility 3 | . . 1 2 . . Weapon 1 | . . 1 . . . Parts Attached 37 | 6 10 10 3 3 5 Power 5 | 2 2 1 . . . Engine 5 | 2 2 1 . . . Core . | . . . . . . Reactor . | . . . . . . Propulsion 8 | 2 2 2 2 . . Treads 3 | 2 1 . . . . Leg 4 | . . 2 2 . . Wheel . | . . . . . . Hover 1 | . 1 . . . . Flight . | . . . . . . Utility 9 | . 2 3 . 1 3 Device 6 | . 1 3 . 1 1 Storage . | . . . . . . Processor 1 | . 1 . . . . Hackware 2 | . . . . . 2 Protection . | . . . . . . Artifact . | . . . . . . Weapon 15 | 2 4 4 1 2 2 Energy Gun 7 | . 4 2 . . 1 Energy Cannon 2 | . . 1 1 . . Ballistic Gun 3 | 2 . . . . 1 Ballistic Cannon . | . . . . . . Launcher 2 | . . 1 . 1 . Special Weapon . | . . . . . . Impact Weapon . | . . . . . . Slashing Weapon . | . . . . . . Piercing Weapon . | . . . . . . Special Melee Weapon 1 | . . . . 1 . Unidentified Prototypes . | . . . . . . Parts Lost 18 | . 5 4 . 9 . Power 3 | . 2 . . 1 . Propulsion 5 | . 3 . . 2 . Utility 4 | . . 2 . 2 . Weapon 6 | . . 2 . 4 . Highest Loss Streak 9 | . 2 1 . 9 . To Critical Strikes . | . . . . . . Average Backups 3 | . 3 4 4 3 2 Power . | . . . . . . Propulsion . | . . . . . . Utility . | . . . . . . Weapon 2 | . 2 3 3 2 1 Tool/Special . | . . . . . . Unused Backups 1 | . . . . . 1 Power . | . . . . . . Propulsion . | . . . . . . Utility . | . . . . . . Weapon 1 | . . . . . 1 Tool/Special . | . . . . . . Average Slot Usage (%) 80 | . 72 90 81 66 63 Engine 10 | . 11 11 9 6 6 Treads 7 | . 14 5 . . . Leg 7 | . . 10 18 15 . Device 15 | . 9 20 18 14 16 Processor 9 | . 7 11 9 9 9 Energy Gun 21 | . 18 27 14 13 3 Energy Cannon 2 | . . 2 9 7 4 Ballistic Gun 3 | . 9 . . . 2 Launcher 1 | . . 1 3 1 . Peak Build Rating 27 | 5 11 20 21 23 27 Average Rating 13 | 3 7 15 19 17 18 On Entrance 10 | . 5 10 19 21 6 Naked Turns . | . . . . . . Heaviest Build 21 | 8 8 21 21 20 9 Greatest Support 40 | 40 40 34 40 40 12 Greatest Overweight (x) 2 | . 2 . . . 2 Average Overweight (x) . | . . . . . . Largest Inventory Capacity 5 | 5 5 5 5 5 5 Average Capacity 5 | 5 5 5 5 5 5 Most Carried 5 | 3 5 5 5 5 4 Average Carried 3 | . 3 4 4 3 2 Final Capacity 5 | 5 5 5 5 5 5 Final Carried 5 | . 5 4 4 3 3 Class Distribution -------------------- 53% | Scavenger-Skirmisher 36% | Mutant 8% | Scavenger-Mutant Dominant Class ---------------- Mutant | -10/Materials Scavenger-Skirmisher | -9/Materials Scavenger-Skirmisher | -8/Materials Scavenger-Skirmisher | -8/Garrison Mutant | -8/Materials Resources | -11 -10 -9 -8 -8 -8 ----------- Run | Yrd Mat Mat Mat Gar Mat Matter Collected 788 | 231 226 224 . 92 15 Remotely . | . . . . . . Salvage Created 2186 | . 543 1450 . 178 15 Parts 139 | . 39 85 . 12 3 Haulers Intercepted 3 | . . 3 . . . Recyclers Shooed 9 | 1 2 6 . . . Parts Field Recycled . | . . . . . . Retrieved Matter . | . . . . . . Parts Self-Destructed . | . . . . . . Prevented . | . . . . . . Kills | -11 -10 -9 -8 -8 -8 ------- Run | Yrd Mat Mat Mat Gar Mat Combat Hostiles Destroyed 38 | . 8 23 . 7 . Guns 24 | . 8 13 . 3 . Cannons 2 | . . 1 . 1 . AOE 12 | . . 9 . 3 . Classes Destroyed 12 | . 8 3 . 1 . Worker 8 | . 3 5 . . . Builder 6 | . 1 4 . . 1 Tunneler 1 | . 1 . . . . Hauler 3 | . . 3 . . . Recycler 5 | . 1 4 . . . Mechanic 2 | . 1 1 . . . Watcher 6 | . 3 3 . . . Swarmer 13 | . 2 8 . 3 . Grunt 17 | . 6 8 . 3 . Brawler 1 | . . 1 . . . Sentry 6 | . . 6 . . . Hunter 1 | . . . . 1 . Best Kill Streak 14 | . 3 14 . 5 1 Combat Bots Only 8 | . 2 8 . 5 . Max Kills in Single Turn 6 | . 1 6 . 1 1 Gunslinging 1 | . . 1 . . . Exploded 6 | . . 6 . 1 . Melee . | . . . . . . Uniques/NPCs Destroyed . | . . . . . . Combat | -11 -10 -9 -8 -8 -8 -------- Run | Yrd Mat Mat Mat Gar Mat Hostile Shots Fired 308 | . 82 72 . 139 15 Missed 102 | . 26 23 . 51 2 Hits 206 | . 56 49 . 88 13 Projectile 206 | . 56 49 . 88 13 Part Disruptions 1 | . . 1 . . . Damage Taken 2751 | . 721 708 . 1131 191 Core 819 | . 75 188 . 487 69 Absorbed by Shields . | . . . . . . Core Remaining (%) 74 | 100 70 53 . . . Volleys Fired 208 | 2 70 93 3 26 14 Largest 3 | 2 2 3 3 3 2 Hottest 181 | 40 100 174 181 181 88 Shots Fired 458 | 4 140 234 5 53 22 Gun 409 | 4 140 217 2 30 16 Cannon 33 | . . 9 3 15 6 Launcher 16 | . . 8 . 8 . Special . | . . . . . . Kinetic 74 | 4 62 . . . 8 Thermal 321 | . 78 179 5 45 14 Explosive 16 | . . 8 . 8 . Electromagnetic 47 | . . 47 . . . Robot Hit Streak 9 | 4 8 9 . 7 3 Robot Miss Streak 8 | . 6 8 . 2 2 Penetration Max . | . . . . . . Secondary Targets 9 | . 3 6 . . . Max Gunslinging Chain 1 | . 1 1 . . . Shots Hit Robots 246 | 4 73 130 . 28 11 Core Hits 108 | 1 29 61 . 15 2 Critical Kills . | . . . . . . Critical Parts Destroyed . | . . . . . . Critical Strikes 11 | . . 9 . 2 . Burn 11 | . . 9 . 2 . Melee Attacks . | . . . . . . Impact . | . . . . . . Slashing . | . . . . . . Piercing . | . . . . . . Sneak Attacks . | . . . . . . Combat Hostiles . | . . . . . . Follow-up Attacks . | . . . . . . Damage Inflicted 4478 | 38 780 2680 . 773 207 Guns 2895 | 38 780 1691 . 254 132 Cannons 286 | . . 61 . 150 75 Explosions 1294 | . . 925 . 369 . Melee . | . . . . . . Ramming 3 | . . 3 . . . Kinetic 471 | 38 369 . . . 64 Thermal 2276 | . 411 1318 . 404 143 Explosive 1175 | . . 806 . 369 . Electromagnetic 553 | . . 553 . . . Impact . | . . . . . . Slashing . | . . . . . . Piercing . | . . . . . . Highest Corruption 1 | . . 1 . . . Average Corruption 1 | . . 1 . . . Corruption Purged . | . . . . . . Corruption Blocked . | . . . . . . Effects 9 | . . 9 . . . Message Errors 3 | . . 3 . . . Heat Flow Errors 2 | . . 2 . . . Energy Discharges 1 | . . 1 . . . Data Loss (minor) 2 | . . 2 . . . Weapon Failures 1 | . . 1 . . . Overload Shots . | . . . . . . Overflow Damage 46 | . . 31 . 15 . Projectiles 5 | . . 5 . . . Explosions 41 | . . 26 . 15 . Melee . | . . . . . . Knockbacks . | . . . . . . Impact . | . . . . . . Kinetic . | . . . . . . Secondary . | . . . . . . Self-Inflicted Damage 220 | . . 151 . 69 . Shots 8 | . . 5 . 3 . Rammed . | . . . . . . Targets Rammed 1 | . . 1 . . . Kicked 1 | . . 1 . . . Crushed . | . . . . . . Highest Temperature 256 | . 28 256 45 177 8 Average Temperature 48 | . 9 51 23 59 8 Received Heat Transfer 969 | . 279 195 . 378 117 Effects 3 | . . 3 . . . Interference 3 | . . 3 . . . Siege Activations . | . . . . . . Martial Activations . | . . . . . . Shielding Activations . | . . . . . . Robots Disrupted . | . . . . . . Combat Hostiles . | . . . . . . Robots Corrupted . | . . . . . . Combat Hostiles . | . . . . . . Parts Fried 1 | . . 1 . . . Impact Corruptions . | . . . . . . Robots Melted . | . . . . . . Combat Hostiles . | . . . . . . Parts Melted 22 | . 3 13 . 6 . Heat Transferred 6475 | . 997 4146 . 1073 259 Parts Sabotaged . | . . . . . . Parts Stolen . | . . . . . . Parts Stripped . | . . . . . . Power Chain Reactions 4 | . . 4 . . . Alert | -11 -10 -9 -8 -8 -8 ------- Run | Yrd Mat Mat Mat Gar Mat Maximum Alert Level 1 | . . 1 . 1 . Low Security (%) 91 | 100 100 86 100 84 100 Level 1 8 | . . 13 . 15 . Level 2 . | . . . . . . Level 3 . | . . . . . . Level 4 . | . . . . . . Level 5 . | . . . . . . High Security . | . . . . . . Max Security . | . . . . . . Peak Influence 366 | . 96 366 108 252 129 Initial 124 | . . . 106 53 124 Average 81 | . 32 101 96 136 113 Influence Increases 1437 | . 263 850 7 294 23 Destroy 0b10 Robot/C 760 | . 160 460 . 140 . Destroy 0b10 Robot/NC 155 | . 50 100 . . 5 Destroy Leader 178 | . 46 132 . . . Successful Hack 23 | . 5 14 4 . . Disable Machine 45 | . . 45 . . . Anti-Garrison Action 50 | . . . . 50 . Destroy Structure 121 | . 2 84 3 29 3 Partial Spotted 30 | . . 15 . . 15 Lose Combat Pursuer 75 | . . . . 75 . Influence Decreases 1340 | . 263 597 177 120 183 Entered New Map 310 | . . . 147 30 133 Time Decay 710 | . 213 417 30 . 50 Lost Part 170 | . 50 30 . 90 . Purge Threat 150 | . . 150 . . . Squads Dispatched 5 | . 1 3 . . 1 Investigation 1 | . . 1 . . . Extermination . | . . . . . . Reinforcement 4 | . 1 2 . . 1 Assault . | . . . . . . Garrison . | . . . . . . Intercept . | . . . . . . Searches Triggered . | . . . . . . Construction Impeded 2 | . . 2 . . . Haulers Reinforced . | . . . . . . Active Scanning Responses . | . . . . . . Cargo Convoy Interrupts . | . . . . . . Stealth | -11 -10 -9 -8 -8 -8 --------- Run | Yrd Mat Mat Mat Gar Mat Distress Signals 6 | . 1 4 . . 1 Communications Jammed . | . . . . . . Distress Signals . | . . . . . . Times Spotted 72 | . 21 28 . 19 4 Peak Tracking Total 9 | . 4 8 . 9 4 Tactical Retreats 2 | . . . . 2 . Traps | -11 -10 -9 -8 -8 -8 ------- Run | Yrd Mat Mat Mat Gar Mat Traps Triggered 2 | . 1 . . 1 . Indirectly . | . . . . . . Trap Hack Attempts . | . . . . . . Triggered . | . . . . . . Disarmed . | . . . . . . Reprogrammed . | . . . . . . Reused . | . . . . . . Traps Extracted . | . . . . . . Installed . | . . . . . . Triggered . | . . . . . . Machines | -11 -10 -9 -8 -8 -8 ---------- Run | Yrd Mat Mat Mat Gar Mat Machines Disabled 4 | . . 3 . 1 . Max in Single Turn 1 | . . 1 . 1 . Garrison Relay 1 | . . . . 1 . Machines Repaired . | . . . . . . Machines Dismantled . | . . . . . . Machines Sabotaged . | . . . . . . Overloaded Fab Kills . | . . . . . . Hacking | -11 -10 -9 -8 -8 -8 --------- Run | Yrd Mat Mat Mat Gar Mat Machines Accessed 13 | . 4 7 1 . 1 Terminals 11 | . 4 7 . . . Fabricators . | . . . . . . Repair Stations 1 | . . . . . 1 Recycling Units . | . . . . . . Scanalyzers . | . . . . . . Garrison Access 1 | . . . 1 . . Total Hacks 28 | . 8 17 2 . 1 Successful 11 | . 3 6 1 . 1 Failed 17 | . 5 11 1 . . Catastrophic 5 | . 2 3 . . . Database Lockouts . | . . . . . . Manual 15 | . 4 11 . . . Terminals 25 | . 8 17 . . . Fabricators . | . . . . . . Repair Stations 1 | . . . . . 1 Recycling Units . | . . . . . . Scanalyzers . | . . . . . . Garrison Access 2 | . . . 2 . . Terminal Hacks 9 | . 3 6 . . . Record 2 | . 2 . . . . Prototype ID Bank 5 | . 1 4 . . . Branch Access Points 1 | . . 1 . . . Unreport Threat 1 | . . 1 . . . Fabricator Hacks . | . . . . . . Repair Station Hacks 1 | . . . . . 1 Refit 1 | . . . . . 1 Recycling Unit Hacks . | . . . . . . Scanalyzer . | . . . . . . Garrison Access Hacks 1 | . . . 1 . . Unlock Access 1 | . . . 1 . . Unauthorized Hacks . | . . . . . . Terminals . | . . . . . . Fabricators . | . . . . . . Repair Stations . | . . . . . . Recycling Units . | . . . . . . Scanalyzers . | . . . . . . Garrison Access . | . . . . . . Data Cores Recovered . | . . . . . . Used . | . . . . . . Hacking Detections 9 | . 3 5 1 . . Full Trace Events 1 | . . 1 . . . Feedback Events . | . . . . . . Feedback Blocked . | . . . . . . Robot Schematics Acquired . | . . . . . . Robots Built . | . . . . . . Authchips . | . . . . . . Time . | . . . . . . Total Robot Build Rating . | . . . . . . Part Schematics Acquired . | . . . . . . Parts Built . | . . . . . . Authchips . | . . . . . . Time . | . . . . . . Total Part Build Rating . | . . . . . . Parts Repaired . | . . . . . . Time . | . . . . . . Parts Recycled . | . . . . . . Recycled Matter . | . . . . . . Retrieved Matter . | . . . . . . Retrieved Components . | . . . . . . Parts Scanalyzed . | . . . . . . Part Schematics Acquired . | . . . . . . Parts Damaged . | . . . . . . Bothacking | -11 -10 -9 -8 -8 -8 ------------ Run | Yrd Mat Mat Mat Gar Mat Used RIF Installer . | . . . . . . Robots Hacked . | . . . . . . Non-combat . | . . . . . . Combat . | . . . . . . Robot Hacks Applied . | . . . . . . Relay Couplers Released 3 | . . . . 3 . Machine Destruction 3 | . . . . 3 . Fabnet Peak Effective % . | . . . . . . Robots Rewired . | . . . . . . Allies Hacked . | . . . . . . Hacks Repelled . | . . . . . . Allies | -11 -10 -9 -8 -8 -8 -------- Run | Yrd Mat Mat Mat Gar Mat Total Allies . | . . . . . . Largest Group . | . . . . . . Highest-Rated Group . | . . . . . . Highest-Rated Ally . | . . . . . . Initial Warlord ECA Mod 1 | . . . . . 1 Total Orders . | . . . . . . Ally Attacks . | . . . . . . Total Damage . | . . . . . . Kills . | . . . . . . Allies Corrupted . | . . . . . . Allies Melted . | . . . . . . Intel | -11 -10 -9 -8 -8 -8 ------- Run | Yrd Mat Mat Mat Gar Mat Active Infowar (turns) 1720 | . 342 970 65 234 109 Machine Analysis 1720 | . 342 970 65 234 109 Robot Analysis Total . | . . . . . . Derelict Logs Recovered . | . . . . . . Drone Launches . | . . . . . . Drone Recoveries . | . . . . . . Exploration | -11 -10 -9 -8 -8 -8 ------------- Run | Yrd Mat Mat Mat Gar Mat Turns Passed 2274 | 88 664 1114 65 234 109 Spaces Moved 1129 | 53 270 557 37 146 66 Core 228 | 13 145 . . 48 22 Treads 382 | 40 124 218 . . . Legs 474 | . . 339 37 98 . Wheels . | . . . . . . Hover 45 | . 1 . . . 44 Flight . | . . . . . . Fastest Speed 50 | 50 50 130 130 50 50 Average Speed 135 | 133 150 141 130 103 93 Slowest Speed 160 | 160 160 160 130 130 150 Overloaded Moves . | . . . . . . Propulsion Burnouts . | . . . . . . Robots Hopped . | . . . . . . Potential Cave-ins . | . . . . . . Cave-ins Triggered . | . . . . . . Exploration Rate (%) 28 | 5 58 57 7 32 10 Regions Visited 5 Branch Regions . Pre-discovered Areas . | . . . . . . Known Exits Taken 1 | . . . 1 . . Unknown Exits Taken 3 | 1 1 1 . . . Scrap Searched . | . . . . . . Spaces Dug 11 | . . 8 . 1 2 Terrain Destroyed 116 | . . 95 3 15 3 Melee . | . . . . . . Projectile 7 | . . . 3 1 3 AOE 109 | . . 95 . 14 . Terrain Rammed . | . . . . . . Walls Destroyed . | . . . . . . Machines Disabled . | . . . . . . Actions | -11 -10 -9 -8 -8 -8 --------- Run | Yrd Mat Mat Mat Gar Mat Total 1478 | 67 394 688 51 184 94 Wait 49 | . 32 15 . 2 . Move 1125 | 52 269 556 37 145 66 Hop . | . . . . . . Pick Up 33 | 6 11 7 3 1 5 Fast Attach 5 | . 2 3 . . . Attach 32 | 5 6 6 4 4 7 Detach 5 | . . . 1 2 2 Swap 7 | 1 2 3 . 1 . Drop 10 | 1 2 4 3 . . Fire 208 | 2 70 93 3 26 14 Melee . | . . . . . . Ram . | . . . . . . Kick 1 | . . 1 . . . Crush . | . . . . . . Escape Stasis 3 | . . . . 3 . Rewire . | . . . . . . Trap . | . . . . . . Miscellaneous . | . . . . . . Route ------- -11/Scrapyard -10/Materials (discovered 2 exits: *Mat / [*Min]) -9/Materials (discovered 3 exits: *Mat x2 / Min) -8/Materials -8/Garrison -8/Materials History --------- Turn | Location | Event 4 | -11/Scrapyard | Discovered new exit (range 16) 89 | -11/Scrapyard | Entered Materials 255 | -10/Materials | Discovered new exit (range 15) 318 | -10/Materials | Build established: Mutant 711 | -10/Materials | Discovered new exit (range 5) 753 | -10/Materials | Entered another Materials area 753 | -9/Materials | Evolved 2 slots: Utility x1, Weapon x1 1094 | -9/Materials | Identified exit to Mines 1199 | -9/Materials | Build established: Scavenger-Skirmisher 1344 | -9/Materials | Discovered new exit (range 15) 1616 | -9/Materials | Discovered new exit (range 5) 1722 | -9/Materials | Destroyed 8 combat bots 1867 | -9/Materials | Entered another Materials area 1867 | -8/Materials | Evolved 2 slots: Utility x2 1932 | -8/Materials | Identified exit to Garrison 1932 | -8/Materials | Entered Garrison 1966 | -8/Garrison | Triggered checkpoint 2000 | -8/Garrison | Garrison Relay disabled 2066 | -8/Garrison | Triggered checkpoint 2073 | -8/Garrison | Triggered checkpoint 2081 | -8/Garrison | Triggered checkpoint 2123 | -8/Garrison | Triggered checkpoint 2140 | -8/Garrison | Core integrity fell below 50% 2159 | -8/Garrison | Discovered new exit (range 15) 2161 | -8/Garrison | Core integrity fell below 20% 2166 | -8/Garrison | Entered Materials 2187 | -8/Materials | Lost 9 parts (1p2n2u4w) 2275 | -8/Materials | Destroyed by Y-45 Defender with Beam Rifle Last Messages --------------- Backup Power I x1 Backup Propulsion I x2 O-16 Technician: "IFF HANDSHAKE FAILED. SECURING TERMINAL." >> Machine Analyzer network decryption results: Terminal x1 ALERT: Hostiles spotted, dispatching reinforcements to Terminal M006. U-05 Engineer builds a Wall. >> Machine Analyzer network decryption results: Garrison Access x1 Terminal x2 Acquired Field Laser. Acquired System Shield. Acquired Minigun. U-05 Engineer destroyed. Acquired 15 matter. R-06 Scavenger collects Structural Scanner. R-06 Scavenger collects Terrain Scanner. R-06 Scavenger collects Terrain Scan Processor. Map ----- +----------------------------------------------------+ | ???????????????????????????????????????T?????????? | | ?????????????????????????????????????????????????? | | ?????????????????????????????????????????????????? | | ?????????????????????????????????????????????????? | | ?????????????????????????????????????????????????? | | ?????????????????????????????????????????????????? | | ?????????????????????????????????????????????????? | | ?????????????????????????????????????????????????? | | ?????????????????????????????????????????????????? | | ?????????????????????????????????????????????????? | | ???????????????????????????? ?????????????????? | | ???????????????????????????? ############??? | | ??????????????????????????? ! #??? | | ??????????????????????????? #??? | | ??????????????????????????? #??? | | ???????????????????????#####+#############+####### | | ???????????????????????# ????# ! # | | ???????????????????????# ????# """ # | | ?"""""?????????????????# ?????# """ # | | ?"""""?????????????????# ??????# """ # | | ?"""""?????????????????# !! "?"????# # | | ???????????????????????# g! "G"????###+########## | | ???????????????????????#g!! ?"""??????# #?# [ | | ????????????#??????????# ???????????# #?# """ | | ??????????### #########;############# ### """ = | | ????????? Y @ u # """ | | ????????? ur o + | | ?????????""" r # """ | | ?????????""" ###+######/######+######### # R" | | ?????????"""?????????# # ??????# # """ | | ?????????????????????# T # ! ????# # | | ?????????????????????# # ??# ####+### | | ?????????"""?????????# !# """"""" #?# #??????? | | ?????????"""?????????# # """"""" #?# #??????? | | ?????????"""?????????# # """"""" #?# #??????? | | ?????????????????????######## """"""" #?? ???????? | | ????????????????????????????# """""""???? ???????? | | ?????????"""????????????????##??????????? ???????? | | ?????????"""???????"""??????????????????? ???????? | | ?????????"""??????"""""?????????????????? ???????? | | ??????????????????"""""?????????????????? ???????? | | ??????????????????"""""?????????????????? ???????? | | ???????????????????"""???????????????????????????? | | ???????????????????????????????T?????????????????? | | ?????????????????????????????????????????????????? | | ?????????????????????????????????????????????????? | | ?????????????????????????????????????????????????? | | ?????????????????????????????????????????????????? | | ?????????????????????????????????????????????????? | | ?????????????????????????????????????????????????? | +----------------------------------------------------+ Best States ------------- Heat Dissipation 59 Energy Generation 12 Energy Capacity 265 Matter Stores 300 Matter Capacity 300 Sight Range 16 Terrain Scan Density 10 Evasion (%) 55 Recoil Reduction 2 Offensive Hacking 10 Defensive Hacking 10 Item Schematics ----------------- None Robot Schematics ------------------ None Fabricated ------------ Nothing Repaired ---------- Nothing Alien Tech Used ----------------- None Achievements -------------- None Challenges ------------ None Game ------ Seed AssemblyTitaniumExtrapolator Manual? 0 Play Time 00:31:00 Cumulative 137.6 hours Start 2025.09.14 @ 08:02:25 End 2025.09.14 @ 08:34:45 Sessions 1 Manual Loads 0 Difficulty Rogue Special Mode None Game No. 466 Rogue 466 Adventurer 0 Explorer 0 Win Type - Total 0 Types 0/0/0/0/0/0/0/0/0/0 Lore% 51 Gallery% 49 Achievement% 36 Wizard Run 0 Options --------- Layout 2 ASCII 0 Keyboard 0 Movement Mouse Keybinds 0 Fullscreen 1 Font 24/Smallcaps Map View 50x44 Zoom Use 0% Tactical HUD 0 Map Filters NONE Filters NONE Steam 1 RUN: 88716cfa-3e51-4c90-ab9f-e9b6e48f5145